Cogmind - Beta 11.1 @@@ ROGUE MODE // 2022.06.25 @ 23:44:55 Player: Malakyel Result: Destroyed by G-47 Trooper with Particle Gun Performance ------------- Evolutions (2) 1000 Regions Visited (6) 1200 Robots Destroyed (30) 150 Value Destroyed (967) 967 Prototype IDs (2) 40 Alien Tech Used (0) 0 Bonus (-43) -43 TOTAL SCORE: 3314 Bonus ------- Follower Combat Kills 87 Friendly Fire -130 Cogmind --------- Core Integrity 0/550 Matter 208/300 Energy 89/100 System Corruption 2% Temperature Cool (9) Movement Core (300) Ox5 Location -8/Storage Parts ------- > --- POWER (1) -------- (None) > --- PROPULSION (4) --- (None) > --- UTILITY (4) ------ Medium Storage Unit > --- WEAPON (2) ------- Improved Medium Laser Improved Assault Rifle > --- INVENTORY (10) --- Light Fission Core Light Treads Medium Matter Pod (100) Trap Extractor (0/4) Peak State ------------ > --- POWER ------------ Light Nuclear Core > --- PROPULSION ------- Light Treads Light Treads Aluminum Leg Titanium Leg > --- UTILITY ---------- Medium Storage Unit Improved Sensor Array Propulsion Shielding Improved Weapon Shielding > --- WEAPON ----------- EM Pulse Gun Assault Rifle > --- INVENTORY -------- Ion Engine Light Ion Engine Light Fission Core Aluminum Leg Medium Matter Pod Hardened Medium Armor Plating Trap Extractor Medium Laser Grenade Launcher [Rating: 20] Favorites ----------- Power Light Ion Engine Engine Light Ion Engine Power Core Light Nuclear Core Propulsion Light Treads Treads Light Treads Leg Aluminum Leg Utility Medium Storage Unit Device Improved Sensor Array Storage Medium Storage Unit Protection Propulsion Shielding Weapon Assault Rifle Energy Gun EM Pulse Gun Ballistic Gun Assault Rifle Launcher Grenade Launcher Build | -11 -10 -10 -10 -9 -8 -8 ------- Run | Scr Mat Min Exi Min Mat Sto Slots Evolved 4 | . . . . . 4 . Power . | . . . . . . . Propulsion 2 | . . . . . 2 . Utility 2 | . . . . . 2 . Weapon . | . . . . . . . Parts Attached 37 | 7 3 1 . 2 16 8 Power 5 | 1 . 1 . . 2 1 Engine 4 | 1 . 1 . . 1 1 Core 1 | . . . . . 1 . Reactor . | . . . . . . . Propulsion 9 | 3 . . . . 5 1 Treads 2 | 2 . . . . . . Leg 7 | 1 . . . . 5 1 Wheel . | . . . . . . . Hover . | . . . . . . . Flight . | . . . . . . . Utility 12 | 2 2 . . 2 5 1 Device 4 | 1 . . . 1 2 . Storage 2 | 1 1 . . . . . Processor . | . . . . . . . Hackware . | . . . . . . . Protection 6 | . 1 . . 1 3 1 Artifact . | . . . . . . . Weapon 11 | 1 1 . . . 4 5 Energy Gun 6 | 1 . . . . 2 3 Energy Cannon . | . . . . . . . Ballistic Gun 3 | . 1 . . . 1 1 Ballistic Cannon . | . . . . . . . Launcher 2 | . . . . . 1 1 Special Weapon . | . . . . . . . Impact Weapon . | . . . . . . . Slashing Weapon . | . . . . . . . Piercing Weapon . | . . . . . . . Special Melee Weapon . | . . . . . . . Unidentified Prototypes . | . . . . . . . Parts Lost 18 | . . . . . 5 13 Power 3 | . . . . . 1 2 Propulsion 6 | . . . . . 2 4 Utility 5 | . . . . . 2 3 Weapon 4 | . . . . . . 4 Highest Loss Streak 13 | . . . . . 3 13 To Critical Strikes . | . . . . . . . Average Slot Usage (%) 94 | . 99 100 100 100 82 52 Engine 11 | . 14 14 14 14 3 4 Treads 24 | . 28 28 28 28 13 3 Leg 2 | . . . . . 10 9 Device 2 | . 10 . . . 9 7 Storage 12 | . 14 14 14 14 9 9 Protection 12 | . 3 14 14 14 14 6 Energy Gun 12 | . 14 14 14 14 9 4 Ballistic Gun 12 | . 13 14 14 14 8 4 Naked Turns . | . . . . . . . Heaviest Build 28 | 11 18 18 18 18 28 28 Greatest Support 40 | 40 40 40 40 40 40 20 Greatest Overweight (x) 3 | 2 . . . . 1 3 Average Overweight (x) . | . . . . . . 1 Largest Inventory Capacity 10 | 8 10 10 10 10 10 10 Average Capacity 9 | 7 9 10 10 10 10 10 Most Carried 10 | 8 10 10 10 10 10 8 Average Carried 9 | 7 8 10 9 9 8 6 Final Capacity 10 | 8 10 10 10 10 10 10 Final Carried 10 | 8 10 10 9 10 8 4 Class Distribution -------------------- 100% | Mutant Dominant Class ---------------- Mutant | -10/Materials Mutant | -10/Mines Mutant | -10/Exiles Mutant | -9/Mines Mutant | -8/Materials Mutant | -8/Storage Resources | -11 -10 -10 -10 -9 -8 -8 ----------- Run | Scr Mat Min Exi Min Mat Sto Matter Collected 839 | 270 . 110 . 53 325 81 Remotely . | . . . . . . . Salvage Created 1015 | 146 . 45 . . 444 380 Parts 47 | 10 . 5 . . 16 16 Haulers Intercepted . | . . . . . . . Recyclers Shooed 3 | 1 . . . . 1 1 Parts Field Recycled . | . . . . . . . Retrieved Matter . | . . . . . . . Parts Self-Destructed . | . . . . . . . Prevented . | . . . . . . . Kills | -11 -10 -10 -10 -9 -8 -8 ------- Run | Scr Mat Min Exi Min Mat Sto Combat Hostiles Destroyed 22 | . . 1 . . 10 11 Guns 12 | . . 1 . . 8 3 AOE 9 | . . . . . 1 8 Classes Destroyed 8 | 3 . 1 . . 3 1 Worker 3 | 1 . 1 . . 1 . Tunneler 2 | 2 . . . . . . Recycler 1 | 1 . . . . . . Watcher 1 | . . . . . 1 . Swarmer 4 | . . 1 . . 3 . Grunt 14 | . . . . . 7 7 Sentry 4 | . . . . . 1 3 Hunter 1 | . . . . . . 1 Best Kill Streak 9 | 1 . 2 . . 3 9 Combat Bots Only 9 | . . 1 . . 3 9 Max Kills in Single Turn 2 | 1 . 1 . . 1 2 Gunslinging . | . . . . . . . Exploded 2 | . . . . . 1 2 Melee . | . . . . . . . Uniques/NPCs Destroyed . | . . . . . . . Combat | -11 -10 -10 -10 -9 -8 -8 -------- Run | Scr Mat Min Exi Min Mat Sto Damage Taken 2433 | . . 26 . 11 1188 1208 Core 559 | . . 9 . . 175 375 Absorbed by Shields . | . . . . . . . Redirected to Shielding 157 | . . . . 3 154 . Regen/Repaired (Parts) 115 | . . . . . 115 . Core Remaining (%) 98 | 100 . . . 96 . . Volleys Fired 101 | 16 . 4 . . 56 25 Largest 2 | 1 . 2 . . 2 2 Hottest 90 | 40 . 60 . . 70 90 Shots Fired 162 | 16 . 8 . . 104 34 Gun 146 | 16 . 8 . . 100 22 Cannon . | . . . . . . . Launcher 16 | . . . . . 4 12 Special . | . . . . . . . Kinetic 65 | . . 4 . . 52 9 Thermal 37 | . . . . . 26 11 Explosive 16 | . . . . . 4 12 Electromagnetic 44 | 16 . 4 . . 22 2 Robot Hit Streak 17 | 3 . 8 . . 17 8 Robot Miss Streak 6 | 3 . . . . 6 4 Penetration Max . | . . . . . . . Secondary Targets 4 | . . . . . 4 . Max Gunslinging Chain 1 | . . . . . 1 . Shots Hit Robots 107 | 9 . 5 . . 66 27 Core Hits 73 | 4 . 2 . . 35 32 Critical Kills 1 | . . . . . . 1 Critical Parts Destroyed . | . . . . . . . Critical Strikes 7 | . . . . . 5 2 Burn 6 | . . . . . 5 1 Destroy 1 | . . . . . . 1 Melee Attacks . | . . . . . . . Impact . | . . . . . . . Slashing . | . . . . . . . Piercing . | . . . . . . . Sneak Attacks . | . . . . . . . Combat Hostiles . | . . . . . . . Follow-up Attacks . | . . . . . . . Damage Inflicted 2448 | 231 5 80 . 13 1092 1027 Guns 1252 | 138 . 79 . . 798 237 Cannons . | . . . . . . . Explosions 1175 | 93 . . . . 294 788 Melee . | . . . . . . . Ramming 21 | . 5 1 . 13 . 2 Kinetic 537 | . . 38 . . 399 100 Thermal 460 | 93 . . . . 255 112 Explosive 1048 | . . . . . 260 788 Electromagnetic 382 | 138 . 41 . . 178 25 Impact . | . . . . . . . Slashing . | . . . . . . . Piercing . | . . . . . . . Highest Corruption 2 | . . . . . . 2 Average Corruption 2 | . . . . . . 2 Corruption Purged . | . . . . . . . Corruption Blocked . | . . . . . . . Effects 2 | . . . . . . 2 Matter Fused 1 | . . . . . . 1 Energy Discharges 1 | . . . . . . 1 Overload Shots . | . . . . . . . Overflow Damage 27 | 4 . . . . 7 16 Projectiles . | . . . . . . . Explosions 27 | 4 . . . . 7 16 Melee . | . . . . . . . Knockbacks 1 | . . 1 . . . . Impact 1 | . . 1 . . . . Kinetic . | . . . . . . . Secondary . | . . . . . . . Self-Inflicted Damage 252 | . . . . . 102 150 Shots 10 | . . . . . 4 6 Rammed 7 | . 1 1 . 4 . 1 Targets Rammed 7 | . 1 1 . 4 . 1 Kicked . | . . . . . . . Crushed . | . . . . . . . Highest Temperature 190 | . . . . . 190 72 Average Temperature 38 | . . . . . 42 20 Received Heat Transfer 1149 | . . . . 6 585 558 Siege Activations . | . . . . . . . Robots Corrupted 1 | . . . . . 1 . Combat Hostiles . | . . . . . . . Parts Fried 1 | . . . . . 1 . Impact Corruptions . | . . . . . . . Robots Melted 1 | . . . . . 1 . Combat Hostiles 1 | . . . . . 1 . Parts Melted 2 | . . . . . 1 1 Heat Transferred 1606 | 150 . . . . 1086 370 Parts Sabotaged . | . . . . . . . Parts Stolen . | . . . . . . . Parts Stripped . | . . . . . . . Power Chain Reactions 3 | 2 . . . . 1 . Missiles Intercepted . | . . . . . . . Alert | -11 -10 -10 -10 -9 -8 -8 ------- Run | Scr Mat Min Exi Min Mat Sto Peak Influence 292 | 20 18 97 . 55 193 292 Initial 57 | . 13 6 . . . 57 Average 31 | 9 13 26 . 7 63 170 Maximum Alert Level 1 | . . . . . 1 1 Low Security (%) 96 | 100 100 100 . 100 99 47 Level 1 3 | . . . . . . 52 Level 2 . | . . . . . . . Level 3 . | . . . . . . . Level 4 . | . . . . . . . Level 5 . | . . . . . . . High Security . | . . . . . . . Max Security . | . . . . . . . Squads Dispatched 5 | . . . . . 2 3 Investigation . | . . . . . . . Extermination . | . . . . . . . Reinforcement 4 | . . . . . 2 2 Assault . | . . . . . . . Garrison 1 | . . . . . . 1 Intercept . | . . . . . . . Searches Triggered . | . . . . . . . Construction Impeded 2 | . . . . . 1 1 Haulers Reinforced . | . . . . . . . Active Scanning Responses . | . . . . . . . Cargo Convoy Interrupts . | . . . . . . . Stealth | -11 -10 -10 -10 -9 -8 -8 --------- Run | Scr Mat Min Exi Min Mat Sto Distress Signals 2 | . . . . . 2 . Communications Jammed . | . . . . . . . Distress Signals . | . . . . . . . Times Spotted 40 | . . 6 . 2 19 13 Peak Tracking Total 9 | . . 3 . 2 7 9 Tactical Retreats 3 | . . . . . 3 . Traps | -11 -10 -10 -10 -9 -8 -8 ------- Run | Scr Mat Min Exi Min Mat Sto Traps Triggered . | . . . . . . . Indirectly . | . . . . . . . Trap Hack Attempts . | . . . . . . . Triggered . | . . . . . . . Disarmed . | . . . . . . . Reprogrammed . | . . . . . . . Reused . | . . . . . . . Traps Extracted . | . . . . . . . Installed . | . . . . . . . Triggered . | . . . . . . . Machines | -11 -10 -10 -10 -9 -8 -8 ---------- Run | Scr Mat Min Exi Min Mat Sto Machines Disabled 3 | . . . . . 1 2 Max in Single Turn 1 | . . . . . 1 1 Machines Sabotaged . | . . . . . . . Garrisons Compromised . | . . . . . . . Overloaded Fab Kills . | . . . . . . . Hacking | -11 -10 -10 -10 -9 -8 -8 --------- Run | Scr Mat Min Exi Min Mat Sto Machines Accessed 8 | . 1 1 4 . 2 . Terminals 2 | . 1 1 . . . . Fabricators . | . . . . . . . Repair Stations 1 | . . . . . 1 . Recycling Units . | . . . . . . . Scanalyzers 1 | . . . . . 1 . Garrison Access . | . . . . . . . Total Hacks 61 | . 2 2 49 . 8 . Successful 60 | . 2 2 49 . 7 . Failed 1 | . . . . . 1 . Catastrophic . | . . . . . . . Database Lockouts . | . . . . . . . Manual . | . . . . . . . Terminals 4 | . 2 2 . . . . Fabricators . | . . . . . . . Repair Stations 5 | . . . . . 5 . Recycling Units . | . . . . . . . Scanalyzers 3 | . . . . . 3 . Garrison Access . | . . . . . . . Terminal Hacks 53 | . 2 2 49 . . . Record 49 | . . . 49 . . . Prototype ID Bank 1 | . 1 . . . . . Investigation Status 1 | . . 1 . . . . Zone Layout 2 | . 1 1 . . . . Fabricator Hacks . | . . . . . . . Repair Station Hacks 4 | . . . . . 4 . Scan Component 2 | . . . . . 2 . Repair 2 | . . . . . 2 . Recycling Unit Hacks . | . . . . . . . Scanalyzer 3 | . . . . . 3 . Insert Component 2 | . . . . . 2 . Analyze 1 | . . . . . 1 . Garrison Access Hacks . | . . . . . . . Unauthorized Hacks . | . . . . . . . Terminals . | . . . . . . . Fabricators . | . . . . . . . Repair Stations . | . . . . . . . Recycling Units . | . . . . . . . Scanalyzers . | . . . . . . . Garrison Access . | . . . . . . . Data Cores Recovered . | . . . . . . . Used . | . . . . . . . Hacking Detections 2 | . 1 . . . 1 . Full Trace Events . | . . . . . . . Feedback Events . | . . . . . . . Feedback Blocked . | . . . . . . . Robot Schematics Acquired . | . . . . . . . Robots Built . | . . . . . . . Authchips . | . . . . . . . Time . | . . . . . . . Total Robot Build Rating . | . . . . . . . Part Schematics Acquired 1 | . . . . . 1 . Parts Built . | . . . . . . . Authchips . | . . . . . . . Time . | . . . . . . . Total Part Build Rating . | . . . . . . . Parts Repaired 2 | . . . . . 2 . Time 58 | . . . . . 58 . Parts Recycled . | . . . . . . . Recycled Matter . | . . . . . . . Retrieved Matter . | . . . . . . . Retrieved Components . | . . . . . . . Parts Scanalyzed 1 | . . . . . 1 . Part Schematics Acquired 1 | . . . . . 1 . Parts Damaged . | . . . . . . . Bothacking | -11 -10 -10 -10 -9 -8 -8 ------------ Run | Scr Mat Min Exi Min Mat Sto Used RIF Installer . | . . . . . . . Robots Hacked . | . . . . . . . Non-combat . | . . . . . . . Combat . | . . . . . . . Robot Hacks Applied . | . . . . . . . Relay Couplers Released . | . . . . . . . Fabnet Peak Effective % . | . . . . . . . Robots Rewired . | . . . . . . . Allies Hacked . | . . . . . . . Hacks Repelled . | . . . . . . . Allies | -11 -10 -10 -10 -9 -8 -8 -------- Run | Scr Mat Min Exi Min Mat Sto Total Allies 5 | . . 5 . . . . Largest Group 5 | . . 5 3 2 2 . Highest-Rated Group 82 | . . 82 55 24 23 . Highest-Rated Ally 31 | . . 31 31 16 16 . Total Orders 6 | . . 6 . . . . FOLLOW 3 | . . 3 . . . . AID 3 | . . 3 . . . . Ally Attacks 23 | . . 10 . 9 4 . Total Damage 270 | . . 130 . 91 49 . Kills 7 | . . 5 . 2 . . Allies Corrupted 1 | . . . . . 1 . Allies Melted . | . . . . . . . Intel | -11 -10 -10 -10 -9 -8 -8 ------- Run | Scr Mat Min Exi Min Mat Sto Robot Analysis Total . | . . . . . . . Derelict Logs Recovered 3 | . . 2 . 1 . . Drone Launches . | . . . . . . . Drone Recoveries . | . . . . . . . Exploration | -11 -10 -10 -10 -9 -8 -8 ------------- Run | Scr Mat Min Exi Min Mat Sto Turns Passed 4089 | 252 335 601 929 1193 595 184 Spaces Moved 2247 | 137 201 367 578 711 194 59 Core 36 | 23 . . . . . 13 Treads 2101 | 114 201 367 578 711 130 . Legs 110 | . . . . . 64 46 Wheels . | . . . . . . . Hover . | . . . . . . . Flight . | . . . . . . . Fastest Speed 50 | 50 160 160 160 160 123 120 Average Speed 160 | 147 160 160 160 160 163 193 Slowest Speed 260 | 160 160 160 160 160 200 260 Overloaded Moves . | . . . . . . . Propulsion Burnouts . | . . . . . . . Robots Hopped . | . . . . . . . Cave-ins Triggered . | . . . . . . . Exploration Rate (%) 48 | 10 34 80 91 98 14 11 Regions Visited 6 Branch Regions 4 Pre-discovered Areas 2 | . . . 1 1 . . Known Exits Taken 1 | . . . . . 1 . Unknown Exits Taken 5 | 1 1 1 1 1 . . Scrap Searched 2 | . . . . 2 . . Spaces Dug . | . . . . . . . Terrain Destroyed 103 | . . . . . 27 76 Melee . | . . . . . . . Projectile . | . . . . . . . AOE 103 | . . . . . 27 76 Terrain Rammed . | . . . . . . . Walls Destroyed . | . . . . . . . Machines Disabled . | . . . . . . . Actions | -11 -10 -10 -10 -9 -8 -8 --------- Run | Scr Mat Min Exi Min Mat Sto Total 2569 | 170 215 373 584 765 366 96 Wait 136 | . . . 2 42 92 . Move 2241 | 136 200 366 577 710 193 59 Hop . | . . . . . . . Pick Up 33 | 10 7 . 2 4 7 3 Fast Attach 5 | 4 . . . . 1 . Attach 19 | 3 2 . . . 7 7 Detach 1 | 1 . . . . . . Swap 13 | . 1 1 . 2 8 1 Drop 13 | . 4 1 3 3 2 . Fire 101 | 16 . 4 . . 56 25 Melee . | . . . . . . . Ram 1 | . . . . . . 1 Kick . | . . . . . . . Crush 6 | . 1 1 . 4 . . Escape Stasis . | . . . . . . . Rewire . | . . . . . . . Trap . | . . . . . . . Miscellaneous . | . . . . . . . Route ------- -11/Scrapyard -10/Materials (discovered 2 exits: *Mat / *Min) -10/Mines (discovered 2 exits: Mat / *Exi) -10/Exiles (discovered 2 exits: [*Min x2]) -9/Mines (discovered 2 exits: *Mat x2) -8/Materials -8/Storage History --------- Turn | Location | Event 3 | -11/Scrapyard | Discovered new exit (range 15) 253 | -11/Scrapyard | Entered Materials 301 | -10/Materials | Build established: Mutant 483 | -10/Materials | Discovered new exit (range 5) 540 | -10/Materials | Discovered new exit (range 15) 588 | -10/Materials | Entered Mines 598 | -10/Mines | Assisted by bots powering up and referring to "LRC-V3" 1039 | -10/Mines | Learned 2 Materials zone layouts 1080 | -10/Mines | Identified exit to Materials 1085 | -10/Mines | Deemed a non-threat by the Exiles lab entrance 1085 | -10/Mines | Discovered new exit (range 5) 1189 | -10/Mines | Entered Exiles 1189 | -10/Exiles | Accompanied by 3 allies 1219 | -10/Exiles | Led the pair of lost Derelicts to a safe place 1269 | -10/Exiles | Met 8R-AWN 1280 | -10/Exiles | Discovered new exit (range 14) 1353 | -10/Exiles | Met EX-HEX 1424 | -10/Exiles | Met EX-DEC 1432 | -10/Exiles | Learned location of Zion (-7) 1553 | -10/Exiles | Visited The Gauntlet 1798 | -10/Exiles | Met EX-BIN 2101 | -10/Exiles | Discovered new exit (range 10) 2118 | -10/Exiles | Entered Mines 2118 | -9/Mines | Accompanied by 2 allies 2170 | -9/Mines | Discovered new exit (range 11) 2241 | -9/Mines | Discovered new exit (range 6) 2242 | -9/Mines | Learned location of Storage (-8) 2629 | -9/Mines | YI-UF0 nonchalantly dropped a Grenade Launcher on the ground 3311 | -9/Mines | Entered Materials 3311 | -8/Materials | Accompanied by 2 allies 3311 | -8/Materials | Evolved 4 slots: Propulsion x2, Utility x2 3312 | -8/Materials | Identified exit to Storage 3589 | -8/Materials | Repaired Trap Extractor 3716 | -8/Materials | Lost 3 parts (1p2u) 3835 | -8/Materials | Repaired Aluminum Leg 3906 | -8/Materials | Entered Storage 3994 | -8/Storage | Garrison activated, responded to threat 4022 | -8/Storage | Core integrity fell below 50% 4036 | -8/Storage | Destroyed 9 combat bots 4064 | -8/Storage | Core integrity fell below 20% 4090 | -8/Storage | Destroyed by G-47 Trooper with Particle Gun Last Messages --------------- 04060_ Slammed into G-47 Trooper. 04060_ Imp. Sensor Array destroyed. 04060_ System corrupted by crushing effect (+2). 04062_ System corrupted: Energy discharge (-27). 04062_ Acquired Aluminum Leg. 04063_ The unstable cave ceiling collapses. 04065_ Lgt. Treads crushed. 04066_ U-05 Engineer builds a Wall. 04067_ Critical hit (Burn: +37). 04067_ Acquired Imp. Assault Rifle. 04068_ The unstable cave ceiling collapses. 04079_ Aluminum Leg destroyed. 04079_ Acquired Imp. Medium Laser. 04081_ Y-45 Defender suffers critical hit (Burn). 04081_ Heat Sink melted. 04081_ Y-45 Defender destroyed. 04082_ Acquired 33 matter. 04083_ System corrupted: Matter fused (-8). 04084_ G-47 Trooper destroyed. 04085_ Acquired 48 matter. Map ----- +----------------------------------------------------+ | | | | | | | | | | | | | | | | | | | | | | | | | | | | | | | | | | | | | | | | | ????????????????????????????????????????????? | | ????????????????????????????????????????????? | | ????????????????###########?????????????????? | | ????????????????# #?????????????????? | | ????????????????# """" #?????????????????? | | ?????############ "@="" #?????????????????? | | ?????# # "[g""" #?????????????????? | | ?????# + """g=" #?????????????????? | | ?????# # ""[*" #?????????????????? | | ?????######## # = #?????????????????? | | ????????????# # % #?????????????????? | | ????????????# #### # # #?????#????????? | | ????????????# #?## # # #????????? | | ????????????# #??### [%= " "" #????????? | | ????????????+ #????# Y "G #????????? | | ????????????# #???? =% " "" #????????? | | ????????????# #???## # ?#????????? | | ????????????# #????## # # # ?????????? | | ????????????# #?????# #% # ##+##?????????? | | ????????????# ######## #### #?????????? | | ????????????# % ???? | | ????????????# ######## # ## #?????????? | | ????????????? #?????? # ##?????????? | | ????????????? ??????? # ???????????? | | ??????????????????????? ## ####?#??????????? | | ??????????????????????? ?? #???????????????? | | ??????????????????????? ?? #???????????????? | | ??????????????????????? ?? #???????????????? | | ??????????????????????? ???????????????????? | | ????????????????????????????????????????????? | +----------------------------------------------------+ Best States ------------- Heat Dissipation 31 Energy Generation 14 Energy Capacity 250 Matter Stores 300 Matter Capacity 300 Sight Range 16 Robot Scan Range 15 Terrain Scan Range 16 Terrain Scan Density 10 Armor Coverage 225 Propulsion Shielding 33 Weapon Shielding 66 Evasion (%) 50 Recoil Reduction 2 Item Schematics ----------------- Aluminum Leg | -8/Materials | Scanalyzed Robot Schematics ------------------ None Fabricated ------------ Nothing Alien Tech Used ----------------- None Achievements -------------- Backstab Challenges ------------ None Game ------ Seed ShadingAntimatterPlating Manual? 0 Play Time 00:52:32 Cumulative 13.7 hours Start 2022.06.25 @ 22:53:33 End 2022.06.25 @ 23:44:55 Sessions 1 Manual Loads 0 Difficulty Rogue Special Mode None Game No. 18 Rogue 18 Adventurer 0 Explorer 0 Win Type - Total 0 Types 0/0/0/0/0/0/0/0/0 Lore% 13 Gallery% 15 Achievement% 13 Wizard Run 0 Options --------- ASCII 0 Keyboard 0 Movement Mouse Keybinds 0 Fullscreen 2 Font 18/SmallcapsGlow Map View 76x50 Tactical HUD 1 Map Filters NONE Filters NONE Steam 1 RUN: b9610ef2-93d2-4427-8979-debf06bdb8cd